fUST/lending_fUST_20260305
["ID","MTS","AMOUNT","RATE_DAILY","PERIOD"]
[407665234,1772640219345,2599.59519062,5.501e-05,2]
[407665235,1772640271601,10000.0,5.479e-05,2]
[407665237,1772640404293,5000.0,5.501e-05,2]
[407665238,1772640433862,852.8,0.000157,120]
[407665242,1772640483770,265.18,3.8e-06,2]
[407665243,1772640501950,736.251116,5.392e-05,2]
[407665244,1772640603510,159.31,5.5e-05,2]
[407665246,1772640617995,-2000.0,9.328e-05,30]
[407665273,1772640631866,-5000.0,5.562e-05,2]
[407665275,1772640631875,-451.57423461,5.59e-05,2]
[407665276,1772640631887,-501.0,5.618e-05,2]
[407665279,1772640631897,-736.251116,5.618e-05,2]
[407665280,1772640631907,-736.251116,5.845e-05,2]
[407665283,1772640631916,-300.0,5.869e-05,2]
[407665284,1772640631927,-300.0,5.869e-05,2]
[407665286,1772640631937,-300.0,5.869e-05,2]
[407665288,1772640631947,-1200.0,5.869e-05,2]
[407665290,1772640631959,-238.99752041,5.871e-05,2]
[407665292,1772640631968,-500.0,5.871e-05,2]
[407665294,1772640631978,-500.0,5.871e-05,2]
[407665296,1772640631989,-500.0,5.871e-05,2]
[407665298,1772640631998,-500.0,5.871e-05,2]
[407665300,1772640632008,-500.0,5.871e-05,2]
[407665303,1772640632018,-500.0,5.871e-05,2]
[407665307,1772640632027,-500.0,5.871e-05,2]
[407665310,1772640632036,-500.0,5.871e-05,2]
[407665313,1772640632046,-375.31883611,5.871e-05,2]
[407665316,1772640632056,-500.0,5.871e-05,2]
[407665319,1772640632065,-500.0,5.871e-05,2]
[407665322,1772640632075,-94.50985898,5.871e-05,2]
[407665325,1772640632086,-405.49014102,5.871e-05,2]
[407665328,1772640632096,-500.0,5.871e-05,2]
[407665331,1772640632105,-500.0,5.871e-05,2]
[407665334,1772640632114,-500.0,5.871e-05,2]
[407665337,1772640632124,-500.0,5.871e-05,2]
[407665340,1772640632133,-292.65317649,5.871e-05,2]
[407665342,1772640632143,-207.34682351,5.871e-05,2]
[407665344,1772640632153,-208.70093855,5.871e-05,2]
[407665346,1772640632162,-96.99198692,5.871e-05,2]
[407665348,1772640632174,-300.58662455,5.871e-05,2]
[407665382,1772640638257,-102.42138852,5.871e-05,2]
[407665383,1772640638266,-333.00026505,5.871e-05,2]
[407665384,1772640638277,-166.99973495,5.871e-05,2]
[407665385,1772640638287,-500.0,5.871e-05,2]
[407665386,1772640638297,-347.82912536,5.871e-05,2]
[407665387,1772640638306,-500.0,5.871e-05,2]
[407665388,1772640638316,-334.44412034,5.871e-05,2]
[407665389,1772640638326,-500.0,5.871e-05,2]
[407665390,1772640638335,-500.0,5.871e-05,2]
[407665391,1772640638345,-500.0,5.871e-05,2]
[407665392,1772640638355,-500.0,5.871e-05,2]
[407665393,1772640638364,-231.42844374,5.871e-05,2]
[407665394,1772640638373,-483.85375767,5.871e-05,2]
[407665395,1772640638383,-4364.46053337,5.872e-05,2]
[407665396,1772640638394,-986.95716686,5.872e-05,2]
[407665417,1772640640478,-917.04835166,5.813e-05,2]
[407665418,1772640640490,-2611.02447509,5.813e-05,2]
[407665419,1772640640499,-31942.97396489,5.872e-05,2]
[407665420,1772640640511,-1075.08886253,5.872e-05,2]
[407665455,1772640644692,-4535.31915163,5.813e-05,2]
[407665457,1772640644701,-14752.75181457,5.872e-05,2]
[407665506,1772640870523,-4274.08947309,5.712e-05,2]
[407665507,1772640870545,-300.0,5.77e-05,2]
[407665508,1772640870571,-905425.91052691,5.771e-05,2]
[407665536,1772641135587,-150.0,9.135e-05,30]
[407665537,1772641137091,-150.0,9.135e-05,30]
[407665538,1772641137902,-150.0,9.135e-05,30]
[407665539,1772641138648,-150.0,9.135e-05,30]
[407665540,1772641139375,-150.0,9.135e-05,30]
[407665541,1772641140020,-150.0,9.135e-05,30]
[407665542,1772641140755,-150.0,9.135e-05,30]
[407665543,1772641141418,-150.0,9.135e-05,30]
[407665544,1772641142141,-150.0,9.135e-05,30]
[407665545,1772641142851,-150.0,9.135e-05,30]
[407665546,1772641158927,162.489025,4.878e-05,2]
[407665547,1772641165987,-150.0,8.914e-05,30]
[407665548,1772641167231,-150.0,8.914e-05,30]
[407665549,1772641168026,-150.0,8.914e-05,30]
[407665550,1772641168908,150.0,8.901e-05,30]
[407665551,1772641169703,-150.0,8.901e-05,30]
[407665552,1772641170535,-150.0,8.901e-05,30]
[407665553,1772641171291,-150.0,8.901e-05,30]
[407665554,1772641172118,-150.0,8.901e-05,30]
[407665555,1772641172878,-150.0,8.901e-05,30]
[407665556,1772641173645,-150.0,8.901e-05,30]
[407665557,1772641202345,163.39,5.5e-05,2]
[407665558,1772641211973,7634.68594091,7.5e-05,3]
[407665559,1772641279265,10000.0,6.5e-05,3]
[407665560,1772641298747,2365.31405909,6e-05,3]
[407665561,1772641502708,10905.41,5.479e-05,2]
[407665562,1772641720979,3248.02,7.531e-05,30]
[407665563,1772641721336,6496.05,7.991e-05,30]
[407665564,1772641726741,-150.0,8.451e-05,30]
[407665565,1772641728144,-150.0,8.451e-05,30]
[407665566,1772641729570,-150.0,8.451e-05,30]
[407665567,1772641730851,-150.0,8.451e-05,30]
[407665568,1772641731839,-150.0,8.451e-05,30]
[407665569,1772641733035,-150.0,8.451e-05,30]
[407665570,1772641733776,-150.0,8.451e-05,30]
[407665571,1772641734723,-150.0,8.451e-05,30]
[407665572,1772641736812,-150.0,8.451e-05,30]
[407665735,1772641832030,-300.0,5.567e-05,2]
[407665736,1772641832039,-1200.0,5.567e-05,2]
[407665738,1772641832050,-501.0,5.568e-05,2]
[407665740,1772641832059,-3131.98653516,5.568e-05,2]
[407665744,1772641832132,-11674.62399885,5.568e-05,2]
[407665745,1772641832142,-964.58946805,5.568e-05,2]
[407665746,1772641832154,-74619.09899741,5.568e-05,2]
[407665762,1772641838821,-500.0,5.567e-05,2]
[407665763,1772641838838,-500.0,5.567e-05,2]
[407665764,1772641838848,-500.0,5.567e-05,2]
[407665765,1772641838857,-500.0,5.567e-05,2]
[407665766,1772641838868,-500.0,5.567e-05,2]
[407665767,1772641838882,-500.0,5.567e-05,2]
[407665768,1772641838892,-500.0,5.567e-05,2]
[407665769,1772641838901,-500.0,5.567e-05,2]
[407665770,1772641838911,-500.0,5.567e-05,2]
[407665771,1772641838923,-500.0,5.567e-05,2]
[407665772,1772641838935,-500.0,5.567e-05,2]
[407665773,1772641838945,-500.0,5.567e-05,2]
[407665774,1772641838955,-500.0,5.567e-05,2]
[407665775,1772641838965,-494.78069007,5.567e-05,2]
[407665776,1772641838977,-500.0,5.567e-05,2]
[407665777,1772641838989,-500.0,5.567e-05,2]
[407665778,1772641838999,-500.0,5.567e-05,2]
[407665779,1772641839009,-500.0,5.567e-05,2]
[407665780,1772641839021,-500.0,5.567e-05,2]
[407665781,1772641839031,-500.0,5.567e-05,2]
[407665782,1772641839044,-500.0,5.567e-05,2]
[407665783,1772641839054,-500.0,5.567e-05,2]
[407665784,1772641839064,-500.0,5.567e-05,2]
[407665785,1772641839073,-500.0,5.567e-05,2]
[407665786,1772641839084,-500.0,5.567e-05,2]
[407665787,1772641839098,-500.0,5.567e-05,2]
[407665788,1772641839109,-500.0,5.567e-05,2]
[407665789,1772641839119,-500.0,5.567e-05,2]
[407665790,1772641839129,-412.24778105,5.567e-05,2]
[407665791,1772641839140,-500.0,5.567e-05,2]
[407665792,1772641839151,-500.0,5.567e-05,2]
[407665793,1772641839162,-500.0,5.567e-05,2]
[407665794,1772641839172,-500.0,5.567e-05,2]
[407665795,1772641839185,-500.0,5.567e-05,2]
[407665796,1772641839195,-500.0,5.567e-05,2]
[407665797,1772641839206,-500.0,5.567e-05,2]
[407665798,1772641839218,-500.0,5.567e-05,2]
[407665799,1772641839228,-500.0,5.567e-05,2]
[407665800,1772641839242,-500.0,5.567e-05,2]
[407665801,1772641839253,-500.0,5.567e-05,2]
[407665802,1772641839269,-500.0,5.567e-05,2]
[407665803,1772641839280,-500.0,5.567e-05,2]
[407665804,1772641839291,-39986.07029186,5.568e-05,2]
[407665815,1772641841010,-526.23817846,5.568e-05,2]
[407665832,1772641845477,-40290.74738078,5.568e-05,2]
[407665833,1772641845489,-15967.00849081,5.568e-05,2]
[407665834,1772641845500,-1580.71166212,5.568e-05,2]
[407665878,1772641846092,-1587.51782246,5.568e-05,2]
[407665887,1772641846171,-1379194.03037301,5.568e-05,2]
[407665889,1772641846185,-15535.1318777,5.568e-05,2]
[407665896,1772641846251,-20983.60152014,5.568e-05,2]
[407665898,1772641846267,-258.58443364,5.568e-05,2]
[407666079,1772641881839,-300.0,5.566e-05,2]
[407666080,1772641881863,-300.0,5.567e-05,2]
[407666081,1772641881879,-839.16875597,5.567e-05,2]
[407666083,1772642063639,-300.0,5.566e-05,2]
[407666084,1772642063661,-700.0,5.567e-05,2]
[407666085,1772642064998,-1000.0,5.567e-05,2]
[407666086,1772642065502,-1000.0,5.567e-05,2]
[407666087,1772642065732,-1000.0,5.567e-05,2]
[407666088,1772642066056,-1000.0,5.567e-05,2]
[407666089,1772642066384,-1000.0,5.567e-05,2]
[407666090,1772642066716,-1000.0,5.567e-05,2]
[407666091,1772642067110,-1000.0,5.567e-05,2]
[407666092,1772642067421,-1000.0,5.567e-05,2]
[407666093,1772642068345,-1000.0,5.567e-05,2]
[407666094,1772642068416,-1000.0,5.567e-05,2]
[407666095,1772642068763,-1000.0,5.567e-05,2]
[407666096,1772642068943,-1000.0,5.567e-05,2]
[407666097,1772642069157,-1000.0,5.567e-05,2]
[407666098,1772642069550,-1000.0,5.567e-05,2]
[407666099,1772642069927,-1000.0,5.567e-05,2]
[407666100,1772642070248,-1000.0,5.567e-05,2]
[407666101,1772642070706,-1000.0,5.567e-05,2]
[407666102,1772642071003,-1000.0,5.567e-05,2]
[407666103,1772642071396,-1000.0,5.567e-05,2]
[407666104,1772642071827,-1000.0,5.567e-05,2]
[407666105,1772642072216,-1000.0,5.567e-05,2]
[407666106,1772642072543,-1000.0,5.567e-05,2]
[407666107,1772642072960,-1000.0,5.567e-05,2]
[407666108,1772642073398,-1000.0,5.567e-05,2]
[407666109,1772642073795,-1000.0,5.567e-05,2]
[407666110,1772642074257,-1000.0,5.567e-05,2]
[407666111,1772642074649,-1000.0,5.567e-05,2]
[407666112,1772642074951,-1000.0,5.567e-05,2]
[407666113,1772642075336,-1000.0,5.567e-05,2]
[407666114,1772642075630,-1000.0,5.567e-05,2]
[407666115,1772642076010,-1000.0,5.567e-05,2]
[407666116,1772642076355,-1000.0,5.567e-05,2]
[407666117,1772642076759,-1000.0,5.567e-05,2]
[407666118,1772642077228,-1000.0,5.567e-05,2]
[407666119,1772642077600,-1000.0,5.567e-05,2]
[407666120,1772642077893,-1000.0,5.567e-05,2]
[407666121,1772642078306,-1000.0,5.567e-05,2]
[407666122,1772642079188,-1000.0,5.567e-05,2]
[407666123,1772642079311,-1000.0,5.567e-05,2]
[407666124,1772642079497,-1000.0,5.567e-05,2]
[407666125,1772642079681,-1000.0,5.567e-05,2]
[407666126,1772642080006,-1000.0,5.567e-05,2]
[407666127,1772642080390,-1000.0,5.567e-05,2]
[407666128,1772642080773,-1000.0,5.567e-05,2]
[407666129,1772642081087,-1000.0,5.567e-05,2]
[407666130,1772642081472,-1000.0,5.567e-05,2]
[407666131,1772642081795,-1000.0,5.567e-05,2]
[407666132,1772642082154,-1000.0,5.567e-05,2]
[407666133,1772642082538,-1000.0,5.567e-05,2]
[407666134,1772642082906,-300.0,5.567e-05,2]
[407666135,1772642082930,-500.0,5.567e-05,2]
[407666136,1772642082956,-200.0,5.567e-05,2]
[407666137,1772642083216,-300.0,5.567e-05,2]
[407666138,1772642083239,-500.0,5.567e-05,2]
[407666139,1772642083266,-200.0,5.567e-05,2]
[407666140,1772642083664,-300.0,5.567e-05,2]
[407666141,1772642083691,-500.0,5.567e-05,2]
[407666142,1772642083714,-200.0,5.567e-05,2]
[407666143,1772642084002,-300.0,5.567e-05,2]
[407666144,1772642084025,-500.0,5.567e-05,2]
[407666145,1772642084047,-200.0,5.567e-05,2]
[407666146,1772642084342,-300.0,5.567e-05,2]
[407666147,1772642084369,-500.0,5.567e-05,2]
[407666148,1772642084396,-200.0,5.567e-05,2]
[407666149,1772642084769,-300.0,5.567e-05,2]
[407666150,1772642084792,-500.0,5.567e-05,2]
[407666151,1772642084815,-200.0,5.567e-05,2]
[407666152,1772642085066,-300.0,5.567e-05,2]
[407666153,1772642085090,-500.0,5.567e-05,2]
[407666154,1772642085115,-200.0,5.567e-05,2]
[407666155,1772642085740,-300.0,5.567e-05,2]
[407666156,1772642085779,-500.0,5.567e-05,2]
[407666157,1772642085804,-200.0,5.567e-05,2]
[407666158,1772642085872,-261.62685594,5.567e-05,2]
[407666159,1772642085898,-500.0,5.567e-05,2]
[407666160,1772642085925,-238.37314406,5.567e-05,2]
[407666161,1772642086155,-261.62685594,5.567e-05,2]
[407666162,1772642086178,-500.0,5.567e-05,2]
[407666163,1772642086205,-238.37314406,5.567e-05,2]
[407666164,1772642086494,-261.62685594,5.567e-05,2]
[407666165,1772642086519,-500.0,5.567e-05,2]
[407666166,1772642086543,-238.37314406,5.567e-05,2]
[407666167,1772642086901,-261.62685594,5.567e-05,2]
[407666168,1772642086925,-500.0,5.567e-05,2]
[407666169,1772642086948,-238.37314406,5.567e-05,2]
[407666170,1772642087271,-261.62685594,5.567e-05,2]
[407666171,1772642087298,-500.0,5.567e-05,2]
[407666172,1772642087323,-238.37314406,5.567e-05,2]
[407666173,1772642087648,-261.62685594,5.567e-05,2]
[407666174,1772642087671,-500.0,5.567e-05,2]
[407666175,1772642087696,-238.37314406,5.567e-05,2]
[407666176,1772642088490,-115.74403145,5.567e-05,2]
[407666177,1772642088514,-500.0,5.567e-05,2]
[407666178,1772642088538,-384.25596855,5.567e-05,2]
[407666179,1772642088959,-115.74403145,5.567e-05,2]
[407666180,1772642088984,-500.0,5.567e-05,2]
[407666181,1772642089008,-384.25596855,5.567e-05,2]
[407666182,1772642089676,-115.74403145,5.567e-05,2]
[407666183,1772642089702,-500.0,5.567e-05,2]
[407666184,1772642089726,-384.25596855,5.567e-05,2]
[407666185,1772642089800,-115.74403145,5.567e-05,2]
[407666186,1772642089823,-500.0,5.567e-05,2]
[407666187,1772642089846,-384.25596855,5.567e-05,2]
[407666188,1772642090005,-115.74403145,5.567e-05,2]
[407666189,1772642090028,-494.72780197,5.567e-05,2]
[407666190,1772642090053,-389.52816658,5.567e-05,2]
[407666191,1772642090459,-110.47183342,5.567e-05,2]
[407666192,1772642090483,-500.0,5.567e-05,2]
[407666193,1772642090506,-389.52816658,5.568e-05,2]
[407666194,1772642090797,-59.01458334,5.568e-05,2]
[407666195,1772642090823,-940.98541666,5.568e-05,2]
[407666196,1772642091163,-1000.0,5.568e-05,2]
[407666197,1772642091578,-1000.0,5.568e-05,2]
[407666198,1772642092138,-1000.0,5.568e-05,2]
[407666199,1772642092233,-1000.0,5.568e-05,2]
[407666200,1772642092632,-1000.0,5.568e-05,2]
[407666201,1772642092966,-1000.0,5.568e-05,2]
[407666202,1772642093377,-1000.0,5.568e-05,2]
[407666203,1772642093838,-1000.0,5.568e-05,2]
[407666204,1772642094118,-1000.0,5.568e-05,2]
[407666205,1772642094523,-1000.0,5.568e-05,2]
[407666206,1772642095304,-1000.0,5.568e-05,2]
[407666207,1772642095708,-1000.0,5.568e-05,2]
[407666208,1772642096121,-1000.0,5.568e-05,2]
[407666209,1772642096447,-1000.0,5.568e-05,2]
[407666210,1772642096926,-1000.0,5.568e-05,2]
[407666211,1772642098499,-1000.0,5.568e-05,2]
[407666212,1772642098914,-1000.0,5.568e-05,2]
[407666213,1772642099475,-1000.0,5.568e-05,2]
[407666214,1772642100195,-1000.0,5.568e-05,2]
[407666215,1772642100553,-1000.0,5.568e-05,2]
[407666216,1772642100619,-1000.0,5.568e-05,2]
[407666217,1772642100994,-1000.0,5.568e-05,2]
[407666218,1772642101419,-1000.0,5.568e-05,2]
[407666219,1772642102822,-300.0,5.567e-05,2]
[407666220,1772642102848,-700.0,5.568e-05,2]
[407666221,1772642103698,-1000.0,5.567e-05,2]
[407666222,1772642104633,-200.0,5.567e-05,2]
[407666223,1772642104660,-800.0,5.568e-05,2]
[407666224,1772642105800,-1000.0,5.568e-05,2]
[407666225,1772642106853,-1000.0,5.568e-05,2]
[407666239,1772642283426,160.16377404,5.34e-05,2]
[407666240,1772642283970,299.67,3.8e-06,2]
[407666245,1772642676851,218.8234143,4.564e-05,2]
[407666249,1772642948059,964.841347,5.051e-05,2]
[407666250,1772642948305,964.841347,5.263e-05,2]
[407666251,1772642948535,964.841347,5.476e-05,2]
[407666252,1772642981879,1863.757883,5.479e-05,2]
[407666287,1772643032085,-324.47130679,5.536e-05,2]
[407666305,1772643032441,-115.10058813,5.536e-05,2]
[407666306,1772643032451,-500.0,5.536e-05,2]
[407666307,1772643032461,-300.0,5.559e-05,2]
[407666308,1772643032470,-1200.0,5.559e-05,2]
[407666309,1772643032479,-4824.38726884,5.56e-05,2]
[407666310,1772643032529,-9931.48616211,5.56e-05,2]
[407666319,1772643038221,-500.0,5.559e-05,2]
[407666320,1772643038231,-500.0,5.559e-05,2]
[407666321,1772643038240,-500.0,5.559e-05,2]
[407666322,1772643038250,-418.52251139,5.559e-05,2]
[407666323,1772643038260,-500.0,5.559e-05,2]
[407666324,1772643038270,-202.63650608,5.559e-05,2]
[407666325,1772643038280,-500.0,5.559e-05,2]
[407666326,1772643038290,-500.0,5.559e-05,2]
[407666327,1772643038299,-500.0,5.559e-05,2]
[407666328,1772643038309,-500.0,5.559e-05,2]
[407666329,1772643038318,-500.0,5.559e-05,2]
[407666330,1772643038328,-500.0,5.559e-05,2]
[407666331,1772643038337,-500.0,5.559e-05,2]
[407666332,1772643038346,-500.0,5.559e-05,2]
[407666333,1772643038621,-500.0,5.559e-05,2]
[407666334,1772643038631,-500.0,5.559e-05,2]
[407666335,1772643038641,-500.0,5.559e-05,2]
[407666336,1772643038650,-500.0,5.559e-05,2]
[407666337,1772643038662,-500.0,5.559e-05,2]
[407666338,1772643038671,-253.89777967,5.559e-05,2]
[407666339,1772643038680,-500.0,5.559e-05,2]
[407666340,1772643038692,-500.0,5.559e-05,2]
[407666341,1772643038702,-500.0,5.559e-05,2]
[407666342,1772643038711,-500.0,5.559e-05,2]
[407666343,1772643038721,-500.0,5.559e-05,2]
[407666344,1772643038731,-296.16268559,5.559e-05,2]
[407666345,1772643038740,-500.0,5.559e-05,2]
[407666346,1772643038750,-500.0,5.559e-05,2]
[407666347,1772643038759,-500.0,5.559e-05,2]
[407666348,1772643038768,-500.0,5.559e-05,2]
[407666349,1772643038778,-500.0,5.559e-05,2]
[407666350,1772643038787,-500.0,5.559e-05,2]
[407666351,1772643038796,-500.0,5.559e-05,2]
[407666352,1772643038806,-500.0,5.559e-05,2]
[407666353,1772643038815,-500.0,5.559e-05,2]
[407666354,1772643038824,-500.0,5.559e-05,2]
[407666355,1772643038834,-500.0,5.559e-05,2]
[407666356,1772643038843,-500.0,5.559e-05,2]
[407666357,1772643038852,-500.0,5.559e-05,2]
[407666358,1772643038861,-500.0,5.559e-05,2]
[407666359,1772643038870,-500.0,5.559e-05,2]
[407666360,1772643038881,-500.0,5.559e-05,2]
[407666361,1772643038890,-500.0,5.559e-05,2]
[407666362,1772643038899,-500.0,5.559e-05,2]
[407666363,1772643038910,-500.0,5.559e-05,2]
[407666364,1772643038919,-500.0,5.559e-05,2]
[407666365,1772643038929,-500.0,5.559e-05,2]
[407666366,1772643038939,-275.36784384,5.559e-05,2]
[407666367,1772643038949,-500.0,5.559e-05,2]
[407666368,1772643038958,-500.0,5.559e-05,2]
[407666369,1772643038968,-500.0,5.559e-05,2]
[407666370,1772643038978,-500.0,5.559e-05,2]
[407666371,1772643038988,-500.0,5.559e-05,2]
[407666372,1772643038997,-500.0,5.559e-05,2]
[407666373,1772643039008,-500.0,5.559e-05,2]
[407666374,1772643039018,-500.0,5.559e-05,2]
[407666375,1772643039028,-500.0,5.559e-05,2]
[407666376,1772643039038,-500.0,5.559e-05,2]
[407666377,1772643039047,-500.0,5.559e-05,2]
[407666378,1772643039057,-500.0,5.559e-05,2]
[407666379,1772643039066,-16604.83267343,5.56e-05,2]
[407666380,1772643039079,-1086.0,5.56e-05,2]
[407666394,1772643041937,-55.14488,5.56e-05,2]
[407666414,1772643046010,-337.72830889,5.56e-05,2]
[407666415,1772643046023,-2573.76000014,5.56e-05,2]
[407666417,1772643046193,-14586.66070659,5.56e-05,2]
[407666418,1772643046203,-151.0,5.568e-05,2]
[407666419,1772643046213,-151.0,5.568e-05,2]
[407666420,1772643046224,-206.0476854,5.568e-05,2]
[407666421,1772643046234,-163.39,5.6e-05,2]
[407666422,1772643046244,-964.841347,5.689e-05,2]
[407666423,1772643046253,-1173.48435,5.713e-05,2]
[407666424,1772643046263,-163.39,5.8e-05,2]
[407666425,1772643046272,-1957.856,5.802e-05,2]
[407666426,1772643046282,-2150.738,5.802e-05,2]
[407666427,1772643046292,-2030.296672,5.857e-05,2]
[407666428,1772643046302,-163.39,5.9e-05,2]
[407666429,1772643046311,-964.841347,5.901e-05,2]
[407666430,1772643046320,-320.42387208,5.912e-05,2]
[407666431,1772643046330,-1389.76,5.941e-05,2]
[407666432,1772643046339,-1127.94623609,6.061e-05,2]
[407666433,1772643046348,-500.0,6.061e-05,2]
[407666434,1772643046357,-250.0,6.061e-05,2]
[407666435,1772643046367,-500.0,6.061e-05,2]
[407666436,1772643046376,-162.380719,6.061e-05,2]
[407666437,1772643046385,-445.202766,6.061e-05,2]
[407666438,1772643046394,-250.0,6.061e-05,2]
[407666439,1772643046404,-500.0,6.061e-05,2]
[407666440,1772643046415,-500.0,6.061e-05,2]
[407666441,1772643046424,-250.0,6.061e-05,2]
[407666442,1772643046434,-500.0,6.061e-05,2]
[407666443,1772643046445,-500.0,6.061e-05,2]
[407666444,1772643046455,-500.0,6.061e-05,2]
[407666445,1772643046464,-250.0,6.061e-05,2]
[407666446,1772643046474,-500.0,6.061e-05,2]
[407666447,1772643046483,-500.0,6.061e-05,2]
[407666448,1772643046492,-250.0,6.061e-05,2]
[407666449,1772643046500,-500.0,6.061e-05,2]
[407666450,1772643046510,-250.0,6.061e-05,2]
[407666451,1772643046519,-500.0,6.061e-05,2]
[407666452,1772643046528,-162.380719,6.061e-05,2]
[407666453,1772643046537,-250.0,6.061e-05,2]
[407666454,1772643046546,-168.3888056,6.061e-05,2]
[407666455,1772643046555,-500.0,6.061e-05,2]
[407666456,1772643046564,-4000.0,6.061e-05,2]
[407666457,1772643046574,-250.0,6.061e-05,2]
[407666458,1772643046583,-174.61919141,6.061e-05,2]
[407666459,1772643046592,-500.0,6.061e-05,2]
[407666460,1772643046601,-4000.0,6.061e-05,2]
[407666461,1772643046611,-250.0,6.061e-05,2]
[407666462,1772643046621,-181.08010149,6.061e-05,2]
[407666463,1772643046631,-4000.0,6.061e-05,2]
[407666464,1772643046640,-500.0,6.061e-05,2]
[407666465,1772643046650,-250.0,6.061e-05,2]
[407666466,1772643046659,-4000.0,6.061e-05,2]
[407666467,1772643046669,-187.78006525,6.061e-05,2]
[407666468,1772643046679,-250.0,6.061e-05,2]
[407666469,1772643046689,-156.587,6.061e-05,2]
[407666470,1772643046701,-4000.0,6.061e-05,2]
[407666471,1772643046710,-194.72792766,6.061e-05,2]
[407666472,1772643046719,-250.0,6.061e-05,2]
[407666473,1772643046729,-201.93286099,6.061e-05,2]
[407666474,1772643046742,-4000.0,6.061e-05,2]
[407666475,1772643046751,-250.0,6.061e-05,2]
[407666476,1772643046761,-4000.0,6.061e-05,2]
[407666477,1772643046770,-209.40437684,6.061e-05,2]
[407666478,1772643046780,-500.0,6.061e-05,2]
[407666479,1772643046789,-500.0,6.061e-05,2]
[407666480,1772643046799,-250.0,6.061e-05,2]
[407666481,1772643046809,-151.0,6.061e-05,2]
[407666482,1772643046819,-4000.0,6.061e-05,2]
[407666483,1772643046827,-217.15233878,6.061e-05,2]
[407666484,1772643046837,-500.0,6.061e-05,2]
[407666485,1772643046846,-250.0,6.061e-05,2]
[407666486,1772643046855,-4000.0,6.061e-05,2]
[407666487,1772643046864,-225.18697532,6.061e-05,2]
[407666488,1772643046874,-500.0,6.061e-05,2]
[407666489,1772643046883,-250.0,6.061e-05,2]
[407666490,1772643046892,-250.0,6.061e-05,2]
[407666491,1772643046902,-4000.0,6.061e-05,2]
[407666492,1772643046911,-233.51889341,6.061e-05,2]
[407666493,1772643046920,-250.0,6.061e-05,2]
[407666494,1772643046929,-250.0,6.061e-05,2]
[407666495,1772643046939,-250.0,6.061e-05,2]
[407666496,1772643046950,-250.0,6.061e-05,2]
[407666497,1772643046959,-250.0,6.061e-05,2]
[407666498,1772643046969,-250.0,6.061e-05,2]
[407666499,1772643046978,-250.0,6.061e-05,2]
[407666500,1772643046988,-4000.0,6.061e-05,2]
[407666501,1772643046998,-250.0,6.061e-05,2]
[407666502,1772643047008,-500.0,6.061e-05,2]
[407666503,1772643047018,-4000.0,6.061e-05,2]
[407666504,1772643047027,-4000.0,6.061e-05,2]
[407666505,1772643047036,-4000.0,6.061e-05,2]
[407666506,1772643047045,-4000.0,6.061e-05,2]
[407666507,1772643047055,-250.0,6.061e-05,2]
[407666508,1772643047064,-500.0,6.061e-05,2]
[407666509,1772643047074,-4000.0,6.061e-05,2]
[407666510,1772643047086,-500.0,6.061e-05,2]
[407666511,1772643047096,-4000.0,6.061e-05,2]
[407666512,1772643047105,-250.0,6.061e-05,2]
[407666513,1772643047115,-242.15909246,6.061e-05,2]
[407666514,1772643047125,-500.0,6.061e-05,2]
[407666515,1772643047135,-4020.93751691,6.061e-05,2]
[407666516,1772643047145,-251.11897888,6.061e-05,2]
[407666517,1772643047155,-500.0,6.061e-05,2]
[407666518,1772643047165,-260.4103811,6.061e-05,2]
[407666519,1772643047175,-250.0,6.061e-05,2]
[407666520,1772643047185,-500.0,6.061e-05,2]
[407666521,1772643047196,-270.0455652,6.061e-05,2]
[407666522,1772643047205,-1000.0,6.061e-05,2]
[407666523,1772643047215,-250.0,6.061e-05,2]
[407666524,1772643047225,-500.0,6.061e-05,2]
[407666525,1772643047235,-280.03725112,6.061e-05,2]
[407666526,1772643047245,-1000.0,6.061e-05,2]
[407666527,1772643047255,-250.0,6.061e-05,2]
[407666528,1772643047264,-250.0,6.061e-05,2]
[407666529,1772643047274,-500.0,6.061e-05,2]
[407666530,1772643047283,-290.39862941,6.061e-05,2]
[407666531,1772643047293,-1000.0,6.061e-05,2]